bitfinex-derivatives/quotes_BTCF0:USTF0_20210706
["timestamp","ask_amount","ask_price","bid_price","bid_amount"]
[1625581710787,1.02788223,34049.0,34045.0,4.63539644]
[1625581710909,1.02793178,34050.0,34048.0,2.24816691]
[1625581711149,1.02793178,34050.0,34049.0,2.488747]
[1625581711509,1.04389701,34050.0,34049.0,2.488747]
[1625581711629,1.04389701,34050.0,34049.0,1.27819308]
[1625581712052,1.04389701,34050.0,34049.0,2.48862484]
[1625581712533,0.01596523,34050.0,34049.0,2.48862484]
[1625581712772,1.02711952,34051.0,34049.0,2.48862484]
[1625581713013,1.02717896,34052.0,34050.0,1.03667722]
[1625581713254,1.02717896,34052.0,34051.0,1.27725387]
[1625581713373,1.02717896,34052.0,34051.0,1.57362387]
[1625581713614,1.04315693,34052.0,34051.0,1.57362387]
[1625581713975,0.01597797,34052.0,34051.0,1.57362387]
[1625581714214,1.04320712,34052.0,34051.0,1.57362387]
[1625581714455,0.01597797,34052.0,34051.0,0.53694544]
[1625581714695,1.02655982,34053.0,34051.0,0.53694544]
[1625581716196,1.02655982,34053.0,34051.0,1.57279162]
[1625581716560,0.9102,34054.0,34051.0,1.57279162]
[1625581716561,0.9102,34054.0,34051.0,0.24057544]
[1625581716562,0.01597726,34052.0,34051.0,0.24057544]
[1625581716684,0.29548726,34052.0,34051.0,0.24057544]
[1625581716810,2.50074546,34052.0,34051.0,0.24057544]
[1625581717047,1.30470874,34052.0,34051.0,0.24057544]
[1625581717281,0.27951,34052.0,34051.0,0.24057544]
[1625581717401,1.26774748,34053.0,34051.0,4.80667544]
[1625581717640,1.26774748,34053.0,34051.0,5.09021544]
[1625581717762,0.24057544,34053.0,34052.0,1.03532472]
[1625581718485,0.24057544,34053.0,34051.0,6.12500035]
[1625581718726,0.24057544,34053.0,34052.0,1.03477626]
[1625581718965,0.24057544,34053.0,34051.0,6.12501273]
[1625581720169,0.24057544,34053.0,34051.0,5.09021544]
[1625581722397,0.24057544,34053.0,34051.0,0.52411544]
[1625581722521,0.24057544,34053.0,34051.0,0.24057544]
[1625581722759,1.26522707,34053.0,34051.0,0.24057544]
[1625581722939,4.0426,34052.0,34051.0,0.24057544]
[1625581723420,5.06691384,34052.0,34051.0,0.24057544]
[1625581726604,5.08289176,34052.0,34051.0,0.24057544]
[1625581727207,6.27660744,34052.0,34051.0,0.24057544]
[1625581728770,5.08289176,34052.0,34051.0,0.24057544]
[1625581729007,6.27665947,34052.0,34051.0,0.24057544]
[1625581729187,5.08289176,34052.0,34051.0,0.24057544]
[1625581730570,1.04029176,34052.0,34051.0,0.24057544]
[1625581731171,2.23395644,34052.0,34051.0,0.24057544]
[1625581731292,2.47453188,34052.0,34051.0,0.24057544]
[1625581732071,1.2808672,34052.0,34051.0,0.24057544]
[1625581732312,2.47439717,34052.0,34051.0,0.24057544]
[1625581733035,1.2808672,34052.0,34051.0,0.24057544]
[1625581735259,0.25655336,34052.0,34051.0,0.24057544]
[1625581735381,0.25655336,34052.0,34051.0,0.45135544]
[1625581737961,0.29126239,34052.0,34051.0,0.45135544]
[1625581738083,1.31361846,34052.0,34051.0,0.45135544]
[1625581738203,1.31361846,34052.0,34051.0,0.24057544]
[1625581738323,0.29126239,34052.0,34051.0,0.24057544]
[1625581738503,1.27747429,34052.0,34051.0,0.24057544]
[1625581738743,1.31218462,34052.0,34051.0,0.24057544]
[1625581740546,1.31218462,34052.0,34049.0,0.24057544]
[1625581740669,1.31218462,34052.0,34044.0,1.27454685]
[1625581740787,1.01862602,34050.0,34044.0,0.24057544]
[1625581741087,1.01817517,34049.0,34044.0,0.24057544]
[1625581741207,1.38830344,34049.0,34044.0,0.24057544]
[1625581741327,0.48115088,34045.0,34041.0,1.03405703]
[1625581741568,0.48115088,34045.0,34039.0,1.27469138]
[1625581741808,4.3488,34040.0,34039.0,0.24057544]
[1625581741928,4.59989,34040.0,34039.0,0.24057544]
[1625581742227,4.61581483,34040.0,34039.0,0.24057544]
[1625581742827,4.61581483,34040.0,34038.0,1.03411546]
[1625581743368,0.49707599,34039.0,34038.0,1.03411546]
[1625581743797,0.49707599,34039.0,34037.0,1.03430346]
[1625581744217,0.01592488,34038.0,34036.0,1.20647382]
[1625581744454,0.01592488,34038.0,34037.0,1.03814715]
[1625581744755,0.01592488,34038.0,34037.0,2.24513775]
[1625581745295,0.01592488,34038.0,34037.0,2.52188775]
[1625581746799,0.01592488,34038.0,34037.0,3.90167495]
[1625581747098,0.01592488,34038.0,34037.0,2.52188775]
[1625581747218,0.01592488,34038.0,34037.0,2.51816785]
[1625581748180,0.48115088,34039.0,34037.0,2.52188756]
[1625581748481,0.48115088,34039.0,34038.0,2.2425175]
[1625581748780,0.49707498,34039.0,34038.0,2.2425175]
[1625581748901,0.49707498,34039.0,34038.0,3.62251001]
[1625581749740,0.48807498,34039.0,34038.0,2.2425175]
[1625581749862,0.48115088,34045.0,34038.0,2.2425175]
[1625581749863,0.48115088,34045.0,34038.0,3.62620866]
[1625581750222,0.48115088,34045.0,34044.0,6.035927]
[1625581750583,0.48115088,34045.0,34044.0,7.24353842]
[1625581750584,0.49707326,34045.0,34044.0,7.24353842]
[1625581750702,0.44737326,34045.0,34044.0,7.24353842]
[1625581751122,0.44737326,34045.0,34044.0,8.62357353]
[1625581751241,0.44737326,34045.0,34044.0,9.62357353]
[1625581751361,0.20679782,34045.0,34044.0,10.10472441]
[1625581751601,0.20679782,34045.0,34044.0,10.1084426]
[1625581751723,0.20679782,34045.0,34044.0,9.1084426]
[1625581752383,0.20679782,34045.0,34044.0,9.10472441]
[1625581752746,0.20679782,34045.0,34044.0,7.7246893]
[1625581758215,0.20679782,34045.0,34044.0,5.48207088]
[1625581758633,0.20679782,34045.0,34044.0,7.72652819]
[1625581760855,0.20679782,34045.0,34044.0,9.10842818]
[1625581761637,0.20679782,34045.0,34044.0,7.72652819]
[1625581762540,0.20679782,34045.0,34044.0,9.10923874]
[1625581765367,0.19087544,34045.0,34044.0,9.10923874]
[1625581765606,0.20680144,34045.0,34044.0,9.10923874]
[1625581767770,0.88986142,34045.0,34044.0,9.10923874]
[1625581767890,0.88986142,34045.0,34044.0,9.80129042]
[1625581773362,0.88986142,34045.0,34044.0,5.03569042]
[1625581773961,1.91909752,34045.0,34044.0,5.03569042]
[1625581774203,3.11977578,34045.0,34044.0,3.65297987]
[1625581774923,3.41049578,34045.0,34044.0,3.65297987]
[1625581776132,3.41049578,34045.0,34044.0,2.93650899]
[1625581776426,3.41049578,34045.0,34041.0,1.21143268]
[1625581776427,4.81699945,34045.0,34041.0,1.21143268]
[1625581776668,4.81699945,34045.0,34040.0,1.38449449]
[1625581776670,4.81699945,34045.0,34040.0,1.21152675]
[1625581776673,2.57058756,34042.0,34040.0,1.21152675]
[1625581776908,2.58599504,34041.0,34038.0,1.21157526]
[1625581777028,2.58599504,34041.0,34033.0,0.72443962]
[1625581777147,2.58599504,34041.0,34024.0,1.73096109]
[1625581777265,0.05063558,34040.0,34024.0,1.73096109]
[1625581777386,0.05063558,34040.0,34023.0,0.2929]
[1625581777513,0.24057544,34026.0,34025.0,0.00371922]
[1625581777626,0.47562544,34026.0,34025.0,0.00371922]
[1625581777749,0.47562544,34026.0,34024.0,0.00371936]
[1625581777986,0.49154883,34026.0,34025.0,0.00371952]
[1625581778114,5.51574883,34026.0,34025.0,0.00371952]
[1625581778227,5.51574883,34026.0,34019.0,0.24057544]
[1625581778228,5.51574883,34026.0,34024.0,0.0037196]
[1625581778588,0.01592392,34025.0,34020.0,0.00371974]
[1625581778829,0.01592392,34025.0,34019.0,0.24057544]
[1625581779069,5.49982544,34026.0,34019.0,0.24057544]
[1625581779550,0.24057544,34020.0,34019.0,0.24057544]
[1625581780337,0.24057544,34020.0,34016.0,0.2929]
[1625581781540,0.24057544,34017.0,34016.0,0.2929]
[1625581781661,0.49588544,34017.0,34016.0,0.2929]
[1625581788634,0.24057544,34017.0,34016.0,0.2929]
[1625581792843,0.24057544,34017.0,34016.0,5.0596]
[1625581798073,0.24057544,34017.0,34016.0,5.5754846]
[1625581799155,0.24057544,34017.0,34016.0,6.77917419]
[1625581799635,0.24057544,34017.0,34016.0,2.01247419]
[1625581799997,0.49363544,34017.0,34016.0,0.8087846]
[1625581800117,0.49363544,34017.0,34016.0,0.5158846]
[1625581800235,5.59573544,34017.0,34016.0,0.5158846]
[1625581800597,0.49363544,34017.0,34016.0,0.5158846]
[1625581803362,0.49363544,34017.0,34015.0,0.75628542]
[1625581804865,0.24057544,34017.0,34016.0,0.51562064]
[1625581806126,0.24057544,34017.0,34016.0,5.24832064]
[1625581806786,0.24057544,34017.0,34016.0,5.25203528]
[1625581806907,0.25651379,34017.0,34016.0,5.25203528]
[1625581807207,0.25651379,34017.0,34016.0,1.55011283]
[1625581809129,0.25651379,34017.0,34016.0,0.51933528]
[1625581812134,0.25651379,34017.0,34016.0,1.55018696]
[1625581815743,0.25651379,34017.0,34016.0,2.75315634]
[1625581816104,0.18251379,34017.0,34016.0,2.75315634]
[1625581816344,0.16657544,34017.0,34016.0,2.75315634]
[1625581816465,0.16657544,34017.0,34016.0,4.12791483]
[1625581816706,0.24057544,34023.0,34016.0,4.12791483]
[1625581816944,0.24057544,34023.0,34016.0,5.12791483]
[1625581817065,0.24057544,34023.0,34022.0,0.51561663]
[1625581817184,0.24057544,34023.0,34022.0,0.77066663]
[1625581817425,0.25652046,34023.0,34022.0,0.77437867]
[1625581817906,0.25652046,34023.0,34022.0,1.25552955]
[1625581818206,0.25652046,34023.0,34022.0,2.2868942]
[1625581819589,0.25652046,34023.0,34022.0,3.49052906]
[1625581820012,0.24057544,34023.0,34022.0,3.49052906]
[1625581822659,0.24057544,34023.0,34022.0,4.86711938]
[1625581824581,0.24057544,34032.0,34022.0,5.86711938]
[1625581824823,0.24057544,34032.0,34025.0,4.13152472]
[1625581824943,0.01594381,34031.0,34026.0,0.0885]
[1625581825064,0.01594381,34031.0,34030.0,1.03281555]
[1625581825184,0.24057544,34032.0,34030.0,1.31071555]
[1625581825304,0.24057544,34032.0,34030.0,1.82713726]
[1625581825423,0.24057544,34032.0,34030.0,7.02713726]
[1625581825544,0.24057544,34032.0,34031.0,1.54924505]
[1625581825786,0.24057544,34032.0,34031.0,2.75789155]
[1625581825967,0.24057544,34032.0,34031.0,3.23533131]
[1625581826386,0.24057544,34032.0,34031.0,4.61292857]
[1625581831014,0.51768544,34032.0,34031.0,4.37235313]
[1625581831134,0.51768544,34032.0,34031.0,0.75699046]
[1625581831375,1.37497957,34032.0,34031.0,0.58534999]
[1625581831614,1.37497957,34032.0,34030.0,0.51716182]
[1625581831615,1.03202764,34032.0,34030.0,0.86194012]
[1625581831855,0.51400493,34031.0,34029.0,0.34480719]
[1625581831975,3.6019,34030.0,34029.0,0.34480719]
[1625581832096,4.59736128,34030.0,34029.0,0.86235994]
[1625581832338,4.59736128,34030.0,34029.0,0.34480719]
[1625581832575,0.99546128,34030.0,34029.0,0.34480719]
[1625581832817,0.99546128,34030.0,34029.0,0.51753763]
[1625581833236,0.99546128,34030.0,34029.0,5.57903763]
[1625581833776,0.48115088,34030.0,34029.0,6.61417249]
[1625581834137,0.48115088,34030.0,34029.0,6.85474793]
[1625581834438,0.48115088,34030.0,34029.0,8.06305057]
[1625581835219,0.24057544,34030.0,34029.0,8.06305057]
[1625581835340,0.85818645,34032.0,34029.0,8.06305057]
[1625581835341,0.34344102,34032.0,34029.0,9.78729893]
[1625581835580,1.0298887,34035.0,34029.0,9.78729893]
[1625581835581,0.85896487,34035.0,34031.0,4.14238161]
[1625581835821,0.85896487,34035.0,34034.0,1.5533961]
[1625581836062,0.34362029,34035.0,34034.0,3.0029509]
[1625581836364,1.03051743,34037.0,34034.0,3.0029509]
[1625581836365,1.03051743,34037.0,34034.0,4.38460424]
[1625581836366,0.86068076,34037.0,34034.0,4.38460424]
[1625581836608,0.34430672,34037.0,34036.0,3.45409676]
[1625581836723,0.34430672,34037.0,34036.0,3.69663676]
[1625581837083,0.86043029,34038.0,34036.0,3.69663676]
[1625581837444,0.34400642,34038.0,34037.0,3.45268579]
[1625581837684,0.85991843,34039.0,34037.0,3.45268579]
[1625581837805,0.85991843,34039.0,34038.0,5.2481]
[1625581838107,0.85991843,34039.0,34038.0,9.18191792]
[1625581838108,0.34403694,34039.0,34038.0,9.18191792]
[1625581839368,0.5163363,34039.0,34038.0,7.97348446]
[1625581839667,0.86051954,34039.0,34038.0,7.97348446]
[1625581840029,0.5163363,34039.0,34038.0,7.4555844]
[1625581840269,0.86080799,34039.0,34038.0,7.97322733]
[1625581840509,0.5163363,34039.0,34038.0,7.97322733]
[1625581840989,0.86087334,34039.0,34038.0,7.97322733]
[1625581841710,0.5163363,34039.0,34038.0,6.93742722]
[1625581842311,1.20482411,34039.0,34038.0,6.93742722]
[1625581843034,0.5163363,34039.0,34038.0,6.93742722]
[1625581843397,1.20430104,34039.0,34038.0,6.24689381]
[1625581843516,1.20430104,34039.0,34038.0,6.59183187]
[1625581843640,2.23574386,34039.0,34038.0,6.07418894]
[1625581843755,1.22025224,34039.0,34038.0,6.07418894]
[1625581844718,1.22025224,34039.0,34038.0,6.59156302]
[1625581844897,1.22025224,34039.0,34038.0,6.07418894]
[1625581845137,1.22025224,34039.0,34038.0,6.5915075]
[1625581845862,1.20430104,34039.0,34038.0,6.5915075]
[1625581845990,0.86015525,34039.0,34038.0,6.93631175]
[1625581846103,0.87610591,34039.0,34038.0,6.93631175]
[1625581846282,0.35976961,34039.0,34038.0,6.93631175]
[1625581846584,0.85961158,34040.0,34038.0,7.97088059]
[1625581846763,0.85961158,34040.0,34039.0,1.2069984]
[1625581847005,0.3438789,34040.0,34039.0,1.2069984]
[1625581847124,0.35982962,34040.0,34039.0,1.2069984]
[1625581847787,0.01595072,34040.0,34039.0,2.24138502]
[1625581847908,0.34393571,34041.0,34039.0,2.24138502]
[1625581848028,0.8600773,34044.0,34040.0,4.44772387]
[1625581848148,0.8600773,34044.0,34043.0,0.48115088]
[1625581848268,0.8600773,34044.0,34043.0,0.86119088]
[1625581848389,0.34411194,34046.0,34043.0,3.10213935]
[1625581848628,0.34398889,34047.0,34045.0,2.24077113]
[1625581848748,0.34398889,34047.0,34046.0,0.0886]
[1625581848868,0.34383317,34048.0,34046.0,1.2951902]
[1625581848996,1.20346972,34049.0,34046.0,1.2951902]
[1625581848997,1.17326972,34049.0,34046.0,1.2951902]
[1625581849125,1.17326972,34049.0,34048.0,3.44709686]
[1625581849126,0.46660588,34049.0,34048.0,3.44709686]
[1625581849229,0.50242435,34053.0,34048.0,3.44709686]
[1625581849350,0.51538568,34057.0,34052.0,0.51654397]
[1625581849470,0.51538568,34057.0,34052.0,0.74907397]
[1625581849594,0.51538568,34057.0,34052.0,1.26561238]
[1625581849829,0.51538568,34057.0,34056.0,4.2177]
[1625581849950,1.44264217,34061.0,34056.0,4.2177]
[1625581849951,1.27094243,34061.0,34056.0,5.2177]
[1625581850190,1.27094243,34061.0,34060.0,0.48115088]
[1625581850191,0.24057544,34061.0,34060.0,0.48115088]
[1625581850309,0.24057544,34061.0,34060.0,0.76112088]
[1625581850550,0.01594586,34061.0,34060.0,0.76112088]
[1625581850790,1.03121117,34064.0,34060.0,0.76112088]
[1625581850911,1.03121054,34065.0,34060.0,0.76112088]
[1625581851151,1.270237,34066.0,34060.0,0.76112088]
[1625581851270,1.270237,34066.0,34060.0,1.76112088]
[1625581851631,0.24057544,34066.0,34064.0,1.0]
[1625581852114,1.03082112,34071.0,34064.0,1.0]
[1625581852230,1.03082112,34071.0,34061.0,1.03134674]
[1625581852231,1.03082112,34071.0,34070.0,0.77720088]
[1625581852531,1.03082112,34071.0,34070.0,4.39320088]
[1625581853251,1.02903701,34072.0,34070.0,4.39320088]
[1625581855834,1.26863806,34073.0,34070.0,4.39320088]
[1625581856441,1.02810541,34072.0,34070.0,4.39320088]
[1625581856561,1.02810541,34072.0,34070.0,0.77720088]
[1625581856682,1.02810541,34072.0,34070.0,0.48115088]
[1625581856862,1.02762122,34071.0,34070.0,0.48115088]
[1625581857227,2.22618917,34071.0,34070.0,0.48115088]
[1625581857464,1.02762122,34071.0,34070.0,0.48115088]
[1625581857886,1.02680555,34072.0,34070.0,0.48115088]
[1625581858364,1.02660332,34071.0,34070.0,0.48115088]
[1625581859447,1.27193332,34071.0,34070.0,0.48115088]
[1625581859808,2.46540617,34071.0,34070.0,0.48115088]
[1625581860047,1.27193332,34071.0,34070.0,0.48115088]
[1625581861070,1.02660332,34071.0,34070.0,0.48115088]
[1625581862572,1.43460931,34073.0,34070.0,0.48115088]
[1625581862573,1.02287735,34072.0,34070.0,0.48115088]
[1625581863114,1.2635612,34073.0,34070.0,0.48115088]
[1625581864434,0.17048695,34071.0,34070.0,0.48115088]
[1625581865334,0.17057978,34072.0,34070.0,0.48115088]
[1625581865456,0.17057978,34072.0,34071.0,0.0867]
[1625581865577,0.17057978,34072.0,34070.0,0.48115088]
[1625581865818,0.41112151,34073.0,34070.0,0.48115088]
[1625581866300,0.24057544,34073.0,34071.0,0.24057544]
[1625581868041,0.24057544,34073.0,34071.0,0.32897544]
[1625581868522,0.24057544,34073.0,34071.0,0.24057544]
[1625581870447,0.23757544,34073.0,34071.0,0.24057544]
[1625581870687,0.23757544,34073.0,34071.0,0.32837544]
[1625581871650,0.9747,34075.0,34071.0,0.32837544]
[1625581871770,0.24057544,34079.0,34071.0,0.32837544]
[1625581872012,0.24057544,34079.0,34071.0,1.32837544]
[1625581872254,0.00075906,34084.0,34071.0,1.32837544]
[1625581872373,0.0560529,47692.0,34083.0,0.72172632]
[1625581872374,0.17014396,34087.0,34083.0,0.72172632]
[1625581872495,0.17014396,34087.0,34083.0,1.06392632]
[1625581872615,0.24057544,34092.0,34083.0,1.06392632]
[1625581872854,0.9817,34094.0,34083.0,1.06392632]
[1625581873094,0.9817,34094.0,34083.0,2.06392632]
[1625581873395,0.24057544,34095.0,34083.0,2.06392632]
[1625581873515,0.24057544,34095.0,34088.0,1.0]
[1625581873755,0.24057544,34095.0,34086.0,1.0]
[1625581873877,0.9459,34098.0,34086.0,1.0]
[1625581874356,0.9459,34098.0,34097.0,0.72172632]
[1625581874479,0.9459,34098.0,34097.0,1.00377632]
[1625581874836,0.24057544,34102.0,34097.0,1.00377632]
[1625581875085,3.5526,34098.0,34097.0,1.00377632]
[1625581875678,1.02278105,34101.0,34097.0,1.00377632]
[1625581875800,1.02275464,34100.0,34097.0,1.00377632]
[1625581876040,1.02296919,34101.0,34097.0,1.00377632]
[1625581876285,0.24057544,34102.0,34097.0,1.00377632]
[1625581876404,0.24057544,34102.0,34101.0,0.24057544]
[1625581877003,0.25649203,34102.0,34101.0,0.24057544]
[1625581878504,0.01591659,34102.0,34101.0,0.24057544]
[1625581878628,0.24057544,34107.0,34101.0,0.24057544]
[1625581879468,0.24057544,34107.0,34106.0,3.9523]
[1625581879587,0.24057544,34107.0,34106.0,4.26544]
[1625581880309,0.24057544,34107.0,34106.0,5.26544]
[1625581880429,0.24057544,34107.0,34106.0,5.50601544]
[1625581880549,0.24057544,34107.0,34106.0,5.59271544]
[1625581880668,0.24057544,34110.0,34106.0,5.59271544]
[1625581880789,0.24057544,34110.0,34106.0,4.59271544]
[1625581881030,0.24057544,34110.0,34106.0,4.50601544]
[1625581881149,0.24057544,34114.0,34106.0,4.50601544]
[1625581881509,0.24057544,34114.0,34109.0,1.0]
[1625581881928,0.24057544,34114.0,34110.0,1.0]
[1625581882411,0.24057544,34114.0,34113.0,0.48115088]
[1625581882532,0.24057544,34114.0,34113.0,0.80131088]
[1625581882892,0.24057544,34119.0,34113.0,0.80131088]
[1625581883011,1.26171473,34124.0,34113.0,0.80131088]
[1625581883133,0.24057544,34124.0,34113.0,0.80131088]
[1625581883252,0.24057544,34124.0,34113.0,1.80131088]
[1625581883373,0.24057544,34127.0,34113.0,1.80131088]
[1625581883613,0.24057544,34127.0,34117.0,1.0]
[1625581883854,0.24057544,34127.0,34115.0,1.0]
[1625581884455,0.24057544,34127.0,34126.0,0.48115088]
[1625581884575,0.24057544,34127.0,34126.0,0.77475088]
[1625581885717,0.24057544,34127.0,34126.0,0.48115088]
[1625581889382,0.24057544,34127.0,34124.0,0.24057544]
[1625581889504,0.58144544,34127.0,34113.0,0.24057544]
[1625581890466,0.48115088,34114.0,34108.0,0.24057544]
[1625581890585,0.80020088,34114.0,34108.0,0.24057544]
[1625581890946,0.80020088,34114.0,34105.0,0.24057544]
[1625581891186,0.80020088,34114.0,34102.0,0.24057544]
[1625581892028,0.80020088,34114.0,34091.0,0.057]
[1625581892268,0.80020088,34114.0,34083.0,1.08459095]
[1625581892507,0.24057544,34096.0,34095.0,0.24057544]
[1625581892626,0.58015544,34096.0,34095.0,0.24057544]
[1625581892993,0.58015544,34096.0,34092.0,0.24057544]
[1625581893348,0.58015544,34096.0,34088.0,0.24057544]
[1625581893829,0.58015544,34096.0,34085.0,0.24057544]
[1625581894549,0.48115088,34086.0,34085.0,0.24057544]
[1625581894669,0.75048088,34086.0,34085.0,0.24057544]
[1625581898700,0.48115088,34086.0,34085.0,0.24057544]
[1625581899421,0.24057544,34090.0,34085.0,0.24057544]
[1625581899541,0.24057544,34090.0,34085.0,1.49840544]
[1625581899903,0.24057544,34090.0,34085.0,0.49840544]
[1625581900505,0.24057544,34090.0,34085.0,1.49840544]
[1625581900625,0.24057544,34090.0,34089.0,0.24057544]
[1625581902248,0.24057544,34090.0,34089.0,4.10797544]
[1625581902367,0.24057544,34090.0,34089.0,0.24057544]
[1625581906216,0.24057544,34090.0,34089.0,5.32027544]
[1625581907297,0.24057544,34090.0,34089.0,6.32027544]
[1625581907536,0.24057544,34090.0,34089.0,5.32027544]
[1625581908377,0.24057544,34090.0,34089.0,5.40517846]
[1625581909098,0.24057544,34090.0,34089.0,5.32027544]
[1625581909338,0.24057544,34090.0,34089.0,5.40525934]
[1625581911324,0.24057544,34090.0,34089.0,5.32027544]
[1625581913251,0.22257544,34090.0,34089.0,5.32027544]
[1625581913493,0.20297544,34090.0,34089.0,5.32027544]
[1625581914157,0.24057544,34096.0,34089.0,5.32027544]
[1625581914759,0.24057544,34096.0,34095.0,0.24057544]
[1625581915000,0.24057544,34096.0,34095.0,0.50909544]
[1625581915118,0.15217544,34096.0,34095.0,0.50909544]
[1625581915658,0.24057544,34100.0,34095.0,0.50909544]
[1625581916383,0.24057544,34100.0,34096.0,0.0882]
[1625581916501,0.12727544,34100.0,34096.0,0.0882]
[1625581916623,0.06667544,34100.0,34096.0,0.0882]
[1625581916742,0.06667544,34100.0,34099.0,0.24057544]
[1625581916862,0.00867544,34100.0,34099.0,0.24057544]
[1625581918064,0.23885088,34103.0,34099.0,0.24057544]
[1625581918425,0.01587986,34102.0,34099.0,0.24057544]
[1625581922757,0.015879,34107.0,34099.0,0.24057544]
[1625581922879,0.015879,34107.0,34101.0,0.24057544]
[1625581924800,0.015879,34107.0,34106.0,0.24057544]
[1625581925163,0.70120174,34107.0,34106.0,0.24057544]
[1625581925404,1.72913753,34107.0,34106.0,0.24057544]
[1625581925642,2.05899753,34107.0,34101.0,0.24057544]
[1625581925763,2.09364293,34107.0,34101.0,0.24057544]
[1625581925882,0.68540612,34103.0,34101.0,0.24057544]
[1625581926255,4.37988139,34102.0,34101.0,0.24057544]
[1625581926786,4.62045683,34102.0,34101.0,0.24057544]
[1625581926908,6.33586562,34102.0,34101.0,0.24057544]
[1625581927928,6.370514,34102.0,34101.0,0.24057544]
[1625581928175,6.370514,34102.0,34095.0,0.24057544]
[1625581928410,0.08603126,34097.0,34095.0,0.24057544]
[1625581928769,0.01588171,34096.0,34095.0,0.24057544]
[1625581928888,0.25645715,34096.0,34095.0,0.24057544]
[1625581929489,0.59445715,34096.0,34095.0,0.24057544]
[1625581930213,0.68059837,34096.0,34095.0,0.24057544]
[1625581930450,0.59445715,34096.0,34095.0,0.24057544]
[1625581930691,0.68060961,34096.0,34095.0,0.32591624]
[1625581930931,0.68060961,34096.0,34095.0,0.24057544]
[1625581931412,0.59445715,34096.0,34095.0,0.24057544]
[1625581932132,1.2825004,34096.0,34095.0,0.24057544]
[1625581932372,2.31537748,34096.0,34095.0,0.24057544]
[1625581932611,1.2825004,34096.0,34095.0,0.24057544]
[1625581933392,2.31537912,34096.0,34095.0,0.24057544]
[1625581934474,2.31537912,34096.0,34091.0,0.01271343]
[1625581934713,2.35003301,34096.0,34091.0,0.01271343]
[1625581934978,2.35003301,34096.0,34089.0,1.19590836]
[1625581934980,0.72172632,34092.0,34089.0,1.19590836]
[1625581935313,0.05053425,34091.0,34089.0,1.19590836]
[1625581935433,0.05053425,34091.0,34087.0,2.73468029]
[1625581935434,1.20551444,34090.0,34087.0,1.36713725]
[1625581935677,1.20551444,34090.0,34081.0,1.19902932]
[1625581935795,1.20551444,34090.0,34080.0,1.37031922]
[1625581935796,1.20551444,34090.0,34063.0,0.0867]
[1625581935798,1.20551444,34090.0,34079.0,1.1998984]
[1625581935799,1.20555231,34088.0,34079.0,1.1998984]
[1625581935919,1.44017231,34088.0,34079.0,1.1998984]
[1625581936052,1.94017231,34088.0,34079.0,1.1998984]
[1625581936158,0.01587961,34087.0,34079.0,1.1998984]
[1625581936277,0.01587961,34087.0,34064.0,3.05606869]
[1625581936279,0.01587961,34087.0,34075.0,1.20145665]
[1625581936281,1.20569781,34083.0,34075.0,1.20145665]
[1625581936394,4.4026,34080.0,34075.0,1.20145665]
[1625581936516,4.64696,34080.0,34075.0,1.20145665]
[1625581936878,0.36853961,34076.0,34075.0,1.20145665]
[1625581937235,0.36853961,34076.0,34073.0,1.37309331]
[1625581937236,0.38442105,34076.0,34070.0,1.20361865]
[1625581937476,0.38442105,34076.0,34068.0,1.20267583]
[1625581937717,0.36853961,34076.0,34068.0,1.20267583]
[1625581938079,0.36853961,34076.0,34067.0,1.20252346]
[1625581938803,1.57343534,34076.0,34066.0,1.20290796]
[1625581938921,0.24057544,34068.0,34066.0,1.4434834]
[1625581939039,0.50013544,34068.0,34066.0,1.4434834]
[1625581939339,0.50013544,34068.0,34067.0,0.51551759]
[1625581941504,0.24057544,34068.0,34067.0,0.51551759]
[1625581941746,0.24057544,34068.0,34067.0,1.71523866]
[1625581942945,0.36853961,34076.0,34067.0,1.71523866]
[1625581942946,0.36853961,34076.0,34067.0,3.32508699]
[1625581942947,0.24057544,34072.0,34067.0,3.32508699]
[1625581943185,0.24057544,34072.0,34071.0,0.51348893]
[1625581943666,0.24057544,34072.0,34071.0,0.60148893]
[1625581943786,0.12796417,34076.0,34071.0,0.60148893]
[1625581944086,0.12796417,34076.0,34075.0,0.51281247]
[1625581944205,0.12796417,34076.0,34075.0,0.72930247]
[1625581944926,0.12796417,34076.0,34075.0,1.21045335]
[1625581945349,0.12796417,34076.0,34075.0,0.48115088]
[1625581948897,0.51560799,34079.0,34075.0,0.48115088]
[1625581949016,0.51560799,34079.0,34078.0,0.48115088]
[1625581949257,0.51568777,34086.0,34078.0,4.52568604]
[1625581949378,0.51568777,34086.0,34079.0,0.087]
[1625581949622,0.24057544,34090.0,34080.0,1.19186139]
[1625581950344,0.24057544,34090.0,34083.0,1.19113935]
[1625581950463,1.19027544,34094.0,34083.0,1.43931935]
[1625581950704,1.19027544,34094.0,34083.0,2.43931935]
[1625581950823,0.24057544,34094.0,34083.0,2.43931935]
[1625581950943,1.20316251,34096.0,34093.0,0.96230176]
[1625581951064,1.20318098,34098.0,34093.0,0.96230176]
[1625581951183,1.20318098,34098.0,34093.0,1.27031176]
[1625581951304,0.24057544,34101.0,34097.0,3.8357]
[1625581951543,1.2030542,34103.0,34097.0,3.8357]
[1625581951846,1.44358272,34104.0,34097.0,3.8357]
[1625581953111,1.44358272,34104.0,34103.0,0.3772058]
[1625581953228,1.44358272,34104.0,34103.0,0.6766458]
[1625581954071,2.81855828,34104.0,34103.0,0.6766458]
[1625581954191,2.81855828,34104.0,34103.0,0.29944]
[1625581954310,2.83444936,34104.0,34093.0,0.48115088]
[1625581954430,3.15688936,34104.0,34093.0,0.48115088]
[1625581954551,1.20319733,34099.0,34093.0,0.48115088]
[1625581954795,1.20302239,34100.0,34093.0,0.48115088]
[1625581955093,1.20302239,34100.0,34098.0,0.24057544]
[1625581955334,1.20305506,34099.0,34098.0,0.24057544]
[1625581955697,2.5781558,34099.0,34098.0,0.24057544]
[1625581955817,2.5781558,34099.0,34093.0,0.48115088]
[1625581956057,0.24057544,34102.0,34093.0,0.24057544]
[1625581956058,1.49603258,34097.0,34093.0,0.24057544]
[1625581956300,1.2032635,34095.0,34093.0,0.24057544]
[1625581956539,1.20329776,34094.0,34093.0,0.24057544]
[1625581957082,1.68444864,34094.0,34087.0,0.24057544]
[1625581959124,0.48115088,34094.0,34093.0,0.24057544]
[1625581959243,1.68464584,34094.0,34093.0,0.24057544]
[1625581959725,0.48115088,34094.0,34093.0,0.24057544]
[1625581961470,1.68464532,34094.0,34093.0,0.24057544]
[1625581962070,1.68464532,34094.0,34087.0,0.24057544]
[1625581962191,1.99229532,34094.0,34087.0,0.24057544]
[1625581962311,1.20354299,34093.0,34087.0,0.24057544]
[1625581962551,1.20344354,34092.0,34087.0,0.24057544]
[1625581962791,1.2034319,34093.0,34087.0,0.24057544]
[1625581963031,1.2034598,34092.0,34087.0,0.24057544]
[1625581963211,0.24057544,34088.0,34087.0,0.24057544]
[1625581968091,1.27226395,34088.0,34087.0,0.24057544]
[1625581968497,1.27226395,34088.0,34082.0,0.24057544]
[1625581968617,2.49173895,34088.0,34082.0,0.24057544]
[1625581968858,1.0317096,34084.0,34082.0,0.24057544]
[1625581968978,1.3473696,34084.0,34082.0,0.24057544]
[1625581969097,1.0317133,34083.0,34082.0,0.24057544]